bitfinex-derivatives/quotes_BTCF0:USTF0_20241110
["timestamp","ask_amount","ask_price","bid_price","bid_amount"]
[1731237274440,0.3608,79863.0,79856.0,0.3608]
[1731237275029,0.37564,79862.0,79856.0,0.3608]
[1731237275428,0.37568,79861.0,79846.0,0.0494]
[1731237275634,0.3608,79863.0,79846.0,0.0494]
[1731237275635,0.6608,79863.0,79846.0,0.0494]
[1731237276330,0.3608,79856.0,79846.0,0.0494]
[1731237276839,0.73648,79856.0,79846.0,0.0494]
[1731237277038,0.35830418,79857.0,79846.0,0.0494]
[1731237277232,0.73398418,79857.0,79846.0,0.0494]
[1731237277434,0.3608,79856.0,79846.0,0.0494]
[1731237277834,0.73648,79856.0,79846.0,0.0494]
[1731237278034,0.35830418,79857.0,79851.0,0.3608]
[1731237278444,0.35830418,79857.0,79846.0,0.0494]
[1731237281140,0.35830418,79857.0,79851.0,0.3608]
[1731237281634,0.25806492,79857.0,79851.0,0.3608]
[1731237282242,0.12023568,79857.0,79851.0,0.3608]
[1731237284235,0.12023568,79857.0,79853.0,0.07274601]
[1731237284442,0.08264449,79857.0,79854.0,0.16816464]
[1731237284644,0.3608,79856.0,79847.0,0.07274601]
[1731237284939,0.31694096,79856.0,79848.0,0.09542393]
[1731237285240,0.31694096,79856.0,79849.0,0.21157369]
[1731237285443,0.31694096,79856.0,79855.0,0.07369526]
[1731237285737,0.37568,79856.0,79855.0,0.07369526]
[1731237285938,0.37568,79856.0,79855.0,0.21157539]
[1731237286237,0.37568,79856.0,79855.0,0.09542587]
[1731237286437,0.66636,79856.0,79855.0,0.09542587]
[1731237286745,0.66636,79856.0,79855.0,0.09542066]
[1731237286746,0.29068,79856.0,79855.0,0.09542066]
[1731237286940,0.66636,79856.0,79855.0,0.09542066]
[1731237287642,0.66636,79856.0,79855.0,0.21156139]
[1731237288836,0.66636,79856.0,79855.0,0.09542066]
[1731237289032,0.60370675,79856.0,79855.0,0.09542066]
[1731237289738,0.60370675,79856.0,79855.0,0.21156342]
[1731237289944,0.60370675,79856.0,79855.0,0.09542066]
[1731237290746,0.37568,79856.0,79855.0,0.09542032]
[1731237291340,0.37568,79856.0,79855.0,0.06145152]
[1731237291642,0.37568,79856.0,79855.0,0.09542333]
[1731237292038,0.37568,79856.0,79855.0,0.06145272]
[1731237292239,0.37568,79856.0,79855.0,0.0954253]
[1731237292444,0.36144,79859.0,79855.0,0.09542453]
[1731237292641,0.3608,79859.0,79856.0,0.09542453]
[1731237292839,0.00500806,79858.0,79857.0,0.09542453]
[1731237293343,0.00500806,79858.0,79857.0,0.2115623]
[1731237293650,0.00517509,79858.0,79857.0,0.2115623]
[1731237294145,0.00517509,79858.0,79857.0,0.16920079]
[1731237294340,0.38085509,79858.0,79857.0,0.09542453]
[1731237294543,0.38085509,79858.0,79843.0,0.3608]
[1731237294544,0.37568,79857.0,79843.0,0.3608]
[1731237294734,0.00517509,79850.0,79844.0,0.11614767]
[1731237294940,0.00517509,79850.0,79843.0,0.3608]
[1731237295136,0.00517509,79850.0,79844.0,0.11614838]
[1731237295347,0.00517509,79850.0,79845.0,0.11614838]
[1731237295553,0.00517509,79850.0,79846.0,0.11614838]
[1731237295741,0.00517509,79848.0,79847.0,0.11614838]
[1731237295937,0.27024,79860.0,79847.0,0.59755435]
[1731237296141,0.27024,79860.0,79859.0,0.3608]
[1731237296142,0.03984,79860.0,79859.0,0.3608]
[1731237296441,0.00015344,79870.0,79859.0,0.7713091]
[1731237296644,0.00015344,79870.0,79860.0,0.11613327]
[1731237296842,0.00015344,79870.0,79861.0,0.04921468]
[1731237297039,0.00015344,79870.0,79867.0,0.3608]
[1731237297245,0.00015344,79870.0,79861.0,0.04921468]
[1731237297554,0.00015344,79870.0,79859.0,0.3608]
[1731237298443,0.00015344,79870.0,79860.0,0.04921468]
[1731237298641,0.00015344,79870.0,79863.0,0.04921468]
[1731237298842,0.00015344,79870.0,79867.0,0.3608]
[1731237299045,0.00015344,79870.0,79860.0,0.04921468]
[1731237299245,0.00015344,79870.0,79862.0,0.04921468]
[1731237299648,0.3608,79868.0,79859.0,0.41001468]
[1731237299950,0.00015344,79870.0,79859.0,0.3608]
[1731237300346,0.3608,79868.0,79853.0,0.04921468]
[1731237300544,0.38585653,79868.0,79853.0,0.04921468]
[1731237300747,0.68585653,79868.0,79857.0,0.04921468]
[1731237300949,0.68585653,79868.0,79856.0,0.04921468]
[1731237301252,0.02505653,79868.0,79859.0,0.3608]
[1731237301450,0.38585653,79868.0,79859.0,0.3608]
[1731237301649,0.27232,79867.0,79866.0,0.3608]
[1731237301842,0.29737653,79868.0,79860.0,0.04921468]
[1731237302039,0.29737653,79868.0,79863.0,0.04921468]
[1731237302241,0.29737653,79868.0,79859.0,0.3608]
[1731237302242,0.29737653,79868.0,79865.0,0.04921468]
[1731237302444,0.02505653,79868.0,79867.0,0.3608]
[1731237302643,0.00015344,79870.0,79867.0,0.3608]
[1731237302842,0.02505653,79879.0,79867.0,0.3608]
[1731237303043,0.02505653,79879.0,79878.0,0.41016766]
[1731237303266,0.02505653,79879.0,79878.0,0.42250957]
[1731237303553,0.02505653,79879.0,79878.0,0.3608]
[1731237303752,0.02517193,79879.0,79878.0,0.3608]
[1731237303949,0.03847385,79897.0,79878.0,0.3608]
[1731237304141,0.03847385,79897.0,79896.0,0.3608]
[1731237304543,0.0512,79932.0,79901.0,0.45862615]
[1731237304856,0.3657,79933.0,79911.0,0.3608]
[1731237304857,0.27232,79931.0,79911.0,0.3608]
[1731237305043,8.767e-05,79930.0,79911.0,0.3608]
[1731237305246,0.02505653,79916.0,79911.0,0.3608]
[1731237305554,8.767e-05,79930.0,79915.0,0.3608]
[1731237305744,8.767e-05,79930.0,79929.0,0.3608]
[1731237305948,0.3608,79962.0,79929.0,0.6608]
[1731237306143,0.3608,79974.0,79939.0,0.3608]
[1731237306446,0.3608,79974.0,79929.0,0.48788597]
[1731237306447,0.02503986,79967.0,79962.0,0.3608]
[1731237306650,0.38583986,79967.0,79946.0,0.00187678]
[1731237307648,0.02503986,79967.0,79946.0,0.30187678]
[1731237307847,0.78674,79986.0,79960.0,0.3608]
[1731237308249,0.3608,79979.0,79960.0,0.3608]
[1731237308951,0.82261527,79986.0,79960.0,0.3608]
[1731237309151,0.3608,79978.0,79960.0,0.3608]
[1731237309552,0.3608,79978.0,79971.0,0.3608]
[1731237309743,0.3608,79978.0,79960.0,0.3608]
[1731237309949,0.02503986,79972.0,79960.0,0.3608]
[1731237311656,0.02503986,79972.0,79961.0,0.45862615]
[1731237312047,0.02503986,79972.0,79971.0,0.3608]
[1731237314060,0.3608,79978.0,79971.0,0.3608]
[1731237314747,0.7875,79986.0,79971.0,0.3608]
[1731237314954,0.3657,79986.0,79971.0,0.3608]
[1731237315154,0.3657,79986.0,79972.0,0.18688744]
[1731237315354,0.3657,79986.0,79971.0,0.3608]
[1731237317362,0.02501959,79973.0,79971.0,0.3608]
[1731237318758,0.3657,79986.0,79971.0,0.3608]
[1731237319363,0.3657,79986.0,79980.0,0.3608]
[1731237319553,0.3657,79986.0,79971.0,0.3608]
[1731237320057,0.02501959,79981.0,79971.0,0.3608]
[1731237321154,0.3657,79986.0,79971.0,0.3608]
[1731237321358,0.3657,79986.0,79980.0,0.3608]
[1731237321557,0.03536342,79991.0,79982.0,0.3608]
[1731237321858,0.3608,79999.0,79982.0,0.3608]
[1731237322554,0.3608,79999.0,79982.0,0.36]
[1731237323055,0.6351531,80000.0,79982.0,0.66]
[1731237323360,0.6344331,80000.0,79982.0,0.66]
[1731237323556,0.6344331,80000.0,79998.0,0.3608]
[1731237323557,0.54841866,80000.0,79998.0,0.3608]
[1731237323750,0.47181866,80000.0,79999.0,0.375]
[1731237323958,0.03529164,80010.0,79999.0,0.375]
[1731237324155,0.3608,80022.0,79998.0,0.36244]
[1731237324361,0.3608,80027.0,80009.0,0.3608]
[1731237324661,0.02501866,80013.0,80009.0,0.3608]
[1731237324849,0.3608,80010.0,79998.0,0.3608]
[1731237325257,0.3608,80010.0,79992.0,0.00187543]
[1731237325461,0.3608,80003.0,79992.0,0.00187543]
[1731237326163,0.39683871,80003.0,79992.0,0.00187543]
[1731237326664,0.3608,79993.0,79992.0,0.00187543]
[1731237326855,0.39747871,80003.0,79984.0,0.3608]
[1731237327061,0.02501866,79994.0,79984.0,0.3608]
[1731237327257,0.3608,79996.0,79984.0,0.3608]
[1731237327457,0.3608,79996.0,79984.0,0.6608]
[1731237327968,0.3608,80015.0,79985.0,0.74972579]
[1731237328261,0.3608,80015.0,79985.0,0.18634098]
[1731237328465,0.3608,80015.0,79991.0,0.3608]
[1731237328762,0.3608,80007.0,79992.0,0.18784352]
[1731237329271,0.3608,80007.0,79991.0,0.3608]
[1731237329762,0.6608,80007.0,79991.0,0.3608]
[1731237330063,0.3608,80000.0,79991.0,0.3608]
[1731237330265,0.3608,80000.0,79984.0,0.05001]
[1731237330266,0.24444,79999.0,79986.0,0.3608]
[1731237330763,0.3608,79993.0,79986.0,0.3608]
[1731237332262,0.3608,79993.0,79984.0,0.05001]
[1731237332464,0.3608,79993.0,79950.0,0.00244]
[1731237332465,0.3608,79986.0,79957.0,0.3608]
[1731237334170,0.3608,79986.0,79968.0,0.3608]
[1731237335769,0.3608,79986.0,79969.0,0.04930234]
[1731237335968,0.3608,79986.0,79968.0,0.3608]
[1731237335969,0.3608,79986.0,79972.0,0.04930234]
[1731237336266,0.3608,80031.0,79985.0,0.3608]
[1731237336473,0.42044,80060.0,80018.0,0.3608]
[1731237336474,0.3608,80032.0,80018.0,0.3608]
[1731237336668,0.3608,80034.0,80018.0,0.3608]
[1731237337464,0.3608,80024.0,80011.0,0.00011423]
[1731237337666,0.69561751,80034.0,80011.0,0.00011423]
[1731237337667,0.02501981,80022.0,80011.0,0.00011423]
[1731237338267,0.02501981,80022.0,80013.0,0.3608]
[1731237341070,0.3608,80018.0,80004.0,0.3608]
[1731237341374,0.3608,80018.0,80001.0,0.00187541]
[1731237341574,0.3608,80004.0,80001.0,0.00187541]
[1731237341770,0.3608,80004.0,79986.0,0.3608]
[1731237342179,0.00011423,80003.0,79986.0,0.3608]
[1731237342568,0.00011423,80003.0,79986.0,0.6608]
[1731237342972,0.00011423,80003.0,79986.0,0.70981124]
[1731237343167,0.00011423,80003.0,79986.0,0.40981124]
[1731237343369,0.00011423,80003.0,79986.0,0.6608]
[1731237343576,0.00011423,80003.0,79986.0,0.3608]
[1731237343775,0.00011423,80003.0,79986.0,0.40981124]
[1731237343975,0.00011423,80003.0,79995.0,0.3608]
[1731237344780,0.00011423,80003.0,79995.0,0.3975617]
[1731237344983,0.00011423,80003.0,79995.0,0.3608]
[1731237345375,0.00011423,80003.0,79995.0,0.3975617]
[1731237345683,0.00011423,80003.0,79995.0,0.3608]
[1731237347681,0.00011423,80003.0,79995.0,0.3975617]
[1731237348078,0.00011423,80003.0,79995.0,0.3608]
[1731237348477,0.00011423,80003.0,79995.0,0.3975617]
[1731237348679,0.00011423,80003.0,79996.0,0.0367617]
[1731237348879,0.00011423,80003.0,79995.0,0.3608]
[1731237349281,0.03478007,80003.0,79995.0,0.3608]
[1731237349795,0.00011423,80003.0,80002.0,0.3608]
[1731237352196,0.21943423,80003.0,79983.0,0.3608]
[1731237353791,0.21943423,80003.0,79997.0,0.3608]
[1731237354282,0.21943423,80003.0,79982.0,0.00013985]
[1731237354283,0.3608,79998.0,79982.0,0.00013985]
[1731237354691,0.3608,79991.0,79982.0,0.00013985]
[1731237354888,0.3608,79998.0,79982.0,0.00013985]
[1731237355388,0.21932,79997.0,79982.0,0.00013985]
[1731237356189,0.21932,79997.0,79992.0,0.0367617]
[1731237356510,0.3608,79993.0,79968.0,0.06136289]
[1731237356792,0.3608,79993.0,79958.0,0.3608]
[1731237356793,0.3608,79984.0,79958.0,0.3608]
[1731237356983,0.21932,79983.0,79958.0,0.3608]
[1731237357584,0.21932,79983.0,79964.0,0.45862615]
[1731237358186,0.21932,79983.0,79965.0,0.3608]
[1731237358685,0.3608,79984.0,79965.0,0.3608]
[1731237358884,0.3608,79984.0,79974.0,0.3608]
[1731237359089,0.02501772,79975.0,79974.0,0.3608]
[1731237362686,0.02501772,79975.0,79974.0,0.81942615]
[1731237364593,0.05563072,79975.0,79974.0,0.81942615]
[1731237365201,0.02501772,79975.0,79974.0,0.81942615]
[1731237365586,0.05563079,79975.0,79974.0,0.81942615]
[1731237365983,0.02501772,79975.0,79974.0,0.73341704]
[1731237366185,0.05563079,79975.0,79974.0,0.73341704]
[1731237366390,1.1300245,79975.0,79958.0,0.00187631]
[1731237366592,0.27970483,79974.0,79958.0,0.00187631]
[1731237366786,0.27970483,79974.0,79953.0,0.3608]
[1731237366787,0.3608,79968.0,79953.0,0.3608]
[1731237367091,0.113833,79967.0,79946.0,0.3608]
[1731237367291,0.49773185,79961.0,79946.0,0.3608]
[1731237367488,0.06898483,79960.0,79946.0,0.3608]
[1731237367890,0.3608,79954.0,79938.0,0.3608]
[1731237368203,0.03061307,79953.0,79946.0,0.3608]
[1731237368395,0.00010586,79959.0,79946.0,0.3608]
[1731237368396,0.21072,79954.0,79946.0,0.3608]
[1731237368595,0.03062489,79953.0,79946.0,0.3608]
[1731237368797,0.03062496,79952.0,79946.0,0.3608]
[1731237368989,0.03062496,79951.0,79946.0,0.3608]
[1731237369194,0.03062496,79950.0,79947.0,0.37106272]
[1731237369395,0.03062496,79949.0,79947.0,0.37106272]
[1731237369699,0.03062496,79948.0,79947.0,0.37106272]
[1731237369893,0.02501812,79948.0,79947.0,0.37106272]
[1731237371495,0.02501812,79948.0,79946.0,0.3608]
[1731237371700,0.02501812,79948.0,79946.0,0.0271]
[1731237371891,0.02501812,79948.0,79888.0,0.12206802]
[1731237371892,0.2073,79946.0,79892.0,0.3608]
[1731237372093,0.32501812,79948.0,79897.0,0.1048]
[1731237372094,0.3608,79915.0,79897.0,0.1048]
[1731237372299,0.3608,79915.0,79903.0,0.3608]
[1731237372797,0.00011207,79914.0,79903.0,0.3608]
[1731237377001,0.00011207,79914.0,79904.0,0.29598272]
[1731237377303,0.02503792,79911.0,79904.0,0.29598272]
[1731237379104,0.02503792,79911.0,79910.0,0.3608]
[1731237379394,0.02503792,79911.0,79904.0,0.29598272]
[1731237382005,0.02503792,79911.0,79905.0,0.29598272]
[1731237385909,0.3608,79909.0,79901.0,0.29598272]
[1731237387007,0.3608,79902.0,79900.0,0.10009206]
[1731237389799,0.39370864,79909.0,79900.0,0.10009206]
[1731237389800,0.03290864,79909.0,79900.0,0.10009206]
[1731237390002,0.00011207,79914.0,79901.0,0.65678272]
[1731237390205,0.00011207,79914.0,79901.0,0.75738272]
[1731237390702,0.00011207,79914.0,79908.0,0.3608]
[1731237390903,0.19328,79935.0,79908.0,0.3608]
[1731237391106,0.00164,79942.0,79930.0,0.3608]
[1731237391311,0.00164,79942.0,79931.0,0.29598272]
[1731237391503,0.03423628,79942.0,79931.0,0.29598272]
[1731237391704,0.00164,79942.0,79941.0,0.3608]
[1731237392210,0.00173574,79942.0,79941.0,0.3608]
[1731237392607,0.00187718,79947.0,79941.0,0.73608]
[1731237392810,0.3608,79975.0,79946.0,0.3608]
[1731237393005,0.02691421,79963.0,79947.0,0.29598272]
[1731237394211,0.02691421,79963.0,79953.0,0.3608]
[1731237397607,0.00187649,79963.0,79954.0,0.29598272]
[1731237398906,0.00187649,79963.0,79956.0,0.3608]
[1731237399110,0.3608,79958.0,79926.0,0.3608]
[1731237399312,0.3608,79958.0,79940.0,0.3608]
[1731237399615,0.3608,79958.0,79941.0,0.29598272]
[1731237401416,0.3608,79958.0,79885.0,0.7819]
[1731237401619,0.02502351,79961.0,79922.0,0.3608]
[1731237401620,0.3608,79934.0,79922.0,0.3608]
[1731237401810,0.28571618,79934.0,79923.0,0.68234]
[1731237402013,0.28571618,79934.0,79924.0,0.37532]
[1731237402210,0.3608,79942.0,79931.0,0.3608]
[1731237402411,8.808e-05,79941.0,79931.0,0.6608]
[1731237402608,8.808e-05,79941.0,79932.0,0.37528]
[1731237403016,8.808e-05,79941.0,79933.0,0.37528]
[1731237403211,8.808e-05,79941.0,79932.0,0.67528]
[1731237403419,0.3608,79953.0,79932.0,0.3]
[1731237403614,0.3608,79953.0,79933.0,0.4971]
[1731237404111,0.3608,79953.0,79931.0,0.3608]
[1731237404112,0.3608,79953.0,79934.0,0.4971]
[1731237404312,0.3608,79953.0,79931.0,0.3608]
[1731237404313,0.3608,79945.0,79931.0,0.3608]
[1731237404516,0.3608,79945.0,79932.0,0.4971]
[1731237404721,0.3608,79945.0,79933.0,0.4971]
[1731237405017,0.3608,79945.0,79931.0,0.3608]
[1731237405018,0.3608,79945.0,79934.0,0.4971]
[1731237405213,0.3608,79945.0,79931.0,0.3608]
[1731237405214,0.3608,79945.0,79935.0,0.4971]
[1731237405417,0.39348021,79945.0,79935.0,0.4971]
[1731237405919,0.41850396,79945.0,79931.0,0.3608]
[1731237406617,0.38582375,79945.0,79931.0,0.3608]
[1731237407716,0.7216,79932.0,79908.0,0.4971]
[1731237407918,0.7216,79914.0,79897.0,0.7938]
[1731237408218,0.7216,79914.0,79898.0,0.4971]
[1731237408614,0.7216,79914.0,79902.0,0.3608]
[1731237408815,0.00012235,79918.0,79909.0,0.3608]
[1731237409118,0.3608,79925.0,79909.0,0.3]
[1731237410415,0.3608,79925.0,79903.0,0.68234]
[1731237410416,0.3608,79918.0,79903.0,0.4971]
[1731237410621,0.3608,79918.0,79903.0,0.7971]
[1731237411021,0.3608,79918.0,79903.0,0.4971]
[1731237411820,0.3608,79907.0,79904.0,0.4971]
[1731237412123,0.3608,79907.0,79905.0,0.4971]
[1731237412424,0.3608,79906.0,79905.0,0.4971]
[1731237413318,0.3608,79906.0,79901.0,0.4971]
[1731237413517,0.3608,79912.0,79901.0,0.4971]
[1731237413922,0.3608,79912.0,79900.0,0.00010236]
[1731237413923,0.3608,79912.0,79902.0,0.4971]
[1731237414119,0.3608,79912.0,79901.0,0.4971]
[1731237414430,0.3608,79912.0,79902.0,0.4971]
[1731237414627,0.3608,79912.0,79900.0,0.00010236]
[1731237415025,0.3608,79905.0,79900.0,0.00010236]
[1731237415526,0.3608,79905.0,79901.0,0.37544]
[1731237416025,0.3608,79905.0,79900.0,0.00010236]
[1731237416824,0.3608,79928.0,79904.0,0.3608]
[1731237417024,0.3608,79928.0,79914.0,0.3608]
[1731237419528,0.00187716,79930.0,79906.0,0.4971]
[1731237419737,0.00187716,79930.0,79916.0,0.3608]
[1731237422436,0.00187716,79930.0,79923.0,0.3608]
[1731237422636,0.3608,79945.0,79934.0,0.49522284]
[1731237422835,0.3608,79945.0,79935.0,0.49522284]
[1731237423439,0.02502975,79944.0,79935.0,0.49522284]
[1731237426432,0.0943,79960.0,79943.0,0.3608]
[1731237426641,0.3608,79959.0,79943.0,0.3608]
[1731237427033,0.3608,79959.0,79936.0,0.49522284]
[1731237427434,0.3608,79943.0,79928.0,0.49522284]
[1731237427640,0.3608,79936.0,79928.0,0.49522284]
[1731237427840,0.02502671,79948.0,79929.0,0.49522284]
[1731237428040,0.3608,79953.0,79932.0,0.3608]
[1731237428837,0.53836,79962.0,79939.0,0.3608]
[1731237429245,0.53908,79962.0,79939.0,0.3608]
[1731237429641,0.36152,79962.0,79939.0,0.3608]
[1731237429944,0.02502671,79950.0,79940.0,0.3608]
[1731237430148,0.02502671,79950.0,79929.0,0.79522284]
[1731237430341,0.02502671,79950.0,79933.0,0.3608]
[1731237430739,0.02502671,79950.0,79933.0,0.6608]
[1731237431948,0.02502671,79950.0,79933.0,0.3608]
[1731237432149,0.01932671,79960.0,79933.0,0.3608]
[1731237432342,0.3608,79955.0,79933.0,0.3608]
[1731237432648,0.3608,79948.0,79933.0,0.3608]
[1731237433146,0.3608,79948.0,79941.0,0.3608]
[1731237434247,0.01932671,79960.0,79941.0,0.3608]
[1731237435048,0.02502106,79951.0,79942.0,0.3608]
[1731237435643,0.01932671,79960.0,79943.0,0.49522284]
[1731237436639,0.01932671,79960.0,79944.0,0.3608]
[1731237436837,0.01932671,79960.0,79943.0,0.49522284]
[1731237438443,0.0250204,79958.0,79943.0,0.49522284]
[1731237438647,0.3608,79951.0,79943.0,0.49522284]
[1731237438951,0.0250204,79958.0,79943.0,0.49522284]
[1731237439246,0.3608,79945.0,79943.0,2.0]
[1731237441644,0.17752,79944.0,79943.0,2.0]
[1731237441845,0.36144,79945.0,79943.0,2.0]
[1731237442052,0.0250204,79944.0,79943.0,2.0]
[1731237445154,0.36144,79955.0,79943.0,2.49522284]
[1731237445338,0.3608,79955.0,79943.0,2.49522284]
[1731237446150,0.02502457,79950.0,79943.0,2.49522284]
[1731237446348,0.3608,79948.0,79943.0,2.49522284]
[1731237449345,0.03062054,79947.0,79943.0,2.49522284]
[1731237450956,0.3608,79948.0,79944.0,0.49522284]
[1731237451743,0.3608,79945.0,79944.0,0.49522284]
[1731237451945,0.53068,79945.0,79944.0,0.49522284]
[1731237454049,0.90596,79945.0,79944.0,0.49522284]
[1731237455149,0.53068,79945.0,79944.0,0.49522284]
[1731237457851,1.20596,79945.0,79944.0,0.34972284]
[1731237458043,1.20596,79945.0,79927.0,0.00187651]
[1731237458354,0.3608,79928.0,79927.0,0.00187651]
[1731237458655,0.3608,79928.0,79927.0,0.4971]
[1731237459049,0.3608,79928.0,79920.0,0.4971]
[1731237459755,0.3608,79928.0,79921.0,0.4971]
[1731237459955,0.39416701,79928.0,79921.0,0.4971]
[1731237460354,0.39416701,79928.0,79927.0,2.0]
[1731237460758,0.76952701,79928.0,79927.0,2.0]
[1731237460955,0.39416701,79928.0,79927.0,2.0]
[1731237461456,0.0937,79930.0,79927.0,2.37536]
[1731237461657,0.3608,79945.0,79928.0,0.96302]
[1731237461860,0.3608,79945.0,79935.0,0.3608]
[1731237462556,0.02502975,79941.0,79935.0,0.3608]
[1731237462949,0.02502975,79941.0,79929.0,0.4971]
[1731237463459,0.3608,79945.0,79929.0,0.4971]
[1731237463654,0.3608,79945.0,79933.0,0.3608]
[1731237463853,0.3608,79945.0,79930.0,0.4971]
[1731237464061,0.3608,79938.0,79931.0,0.4971]
[1731237464451,0.02502975,79949.0,79931.0,0.4971]
[1731237464452,0.3608,79947.0,79931.0,0.4971]
[1731237464762,0.52316,79947.0,79932.0,0.0961]
[1731237466148,0.3608,79939.0,79932.0,0.0961]
[1731237467762,0.39318903,79939.0,79932.0,0.0961]
[1731237467955,0.39318903,79939.0,79931.0,0.49866]
[1731237468153,0.39318903,79939.0,79931.0,0.4971]
[1731237468455,0.3608,79932.0,79927.0,2.00156]
[1731237468657,0.3608,79932.0,79927.0,2.0]
[1731237470163,0.03062779,79931.0,79927.0,2.0]
[1731237470364,0.03062779,79930.0,79927.0,2.0]
[1731237470569,0.03062779,79929.0,79927.0,2.0]
[1731237470756,0.03062779,79928.0,79927.0,2.0]
[1731237471155,0.03062779,79931.0,79927.0,2.0]
[1731237471360,0.03062779,79930.0,79927.0,2.0]
[1731237471556,0.03062779,79929.0,79927.0,2.0]
[1731237471767,0.03062779,79928.0,79927.0,2.0]
[1731237473065,0.3608,79932.0,79927.0,2.37536]
[1731237473361,0.3608,79932.0,79927.0,2.0]
[1731237473757,0.03337082,79946.0,79930.0,0.3608]
[1731237473958,0.0250253,79953.0,79931.0,0.4971]
[1731237473959,0.15512,79947.0,79931.0,0.4971]
[1731237474160,0.3608,79949.0,79931.0,0.4971]
[1731237474464,0.15512,79946.0,79931.0,0.4971]
[1731237474658,0.03838442,79945.0,79931.0,0.4971]
[1731237474858,0.03838442,79944.0,79931.0,0.4971]
[1731237475155,0.3608,79942.0,79931.0,0.4971]
[1731237475363,0.15512,79946.0,79931.0,0.4971]
[1731237475567,0.03838552,79945.0,79931.0,0.4971]
[1731237475761,0.03838552,79944.0,79931.0,0.4971]
[1731237475959,0.15512,79946.0,79931.0,0.4971]
[1731237476262,0.03838473,79945.0,79931.0,0.4971]
[1731237476467,0.03838473,79944.0,79931.0,0.4971]
[1731237476659,0.03838473,79943.0,79931.0,0.4971]
[1731237476858,0.03838473,79942.0,79932.0,0.3608]
[1731237477161,0.03838473,79941.0,79932.0,0.3608]
[1731237477463,0.03838473,79940.0,79932.0,0.3608]
[1731237477661,0.03838473,79939.0,79933.0,0.4971]
[1731237477871,0.03838473,79938.0,79933.0,0.4971]
[1731237478163,0.02503071,79942.0,79933.0,0.4971]
[1731237480364,0.3608,79938.0,79933.0,0.4971]
[1731237481573,0.3936018,79938.0,79933.0,0.4971]
[1731237481967,0.0328018,79938.0,79933.0,0.4971]
[1731237482274,0.38583071,79942.0,79933.0,0.4971]
[1731237483663,0.38583071,79942.0,79934.0,0.4971]
[1731237484369,0.3608,79942.0,79934.0,0.4971]
[1731237485163,0.02502603,79943.0,79941.0,0.3608]
[1731237485364,0.06900191,79942.0,79934.0,0.53071558]
[1731237485565,0.03062081,79941.0,79934.0,0.53071558]
[1731237485874,0.03062081,79940.0,79934.0,0.53071558]
[1731237486071,0.03062081,79939.0,79934.0,0.53071558]
[1731237486274,0.03062081,79938.0,79934.0,0.53071558]
[1731237486479,0.15512,79960.0,79937.0,0.3608]
[1731237486677,0.03838038,79954.0,79937.0,0.3608]
[1731237486876,0.03838038,79953.0,79937.0,0.3608]
[1731237487072,0.03838038,79952.0,79937.0,0.3608]
[1731237487381,0.15512,79960.0,79937.0,0.3608]
[1731237487581,0.03837944,79956.0,79937.0,0.3608]
[1731237487883,0.03838022,79956.0,79937.0,0.3608]
[1731237488179,0.03838022,79955.0,79937.0,0.3608]
[1731237488481,0.03838022,79954.0,79937.0,0.3608]
[1731237488677,0.03838022,79953.0,79937.0,0.3608]
[1731237488981,0.03837977,79952.0,79937.0,0.3608]
[1731237489183,0.0250281,79955.0,79937.0,0.3608]
[1731237489372,0.03837977,79954.0,79937.0,0.3608]
[1731237489573,0.0250281,79955.0,79938.0,0.4971]
[1731237489776,0.03837963,79954.0,79938.0,0.4971]
[1731237489988,0.03837963,79953.0,79938.0,0.4971]
[1731237490174,0.03837963,79952.0,79938.0,0.4971]
[1731237490374,0.03837963,79951.0,79938.0,0.4971]
[1731237490579,0.03837963,79950.0,79939.0,0.3608]
[1731237490780,0.03837963,79949.0,79939.0,0.3608]
[1731237490975,0.3608,79945.0,79939.0,0.3608]
[1731237491174,0.03837963,79944.0,79939.0,0.3608]
[1731237491970,0.03838279,79943.0,79939.0,0.3608]
[1731237492278,0.3608,79946.0,79939.0,0.3608]
[1731237492485,0.03838322,79945.0,79939.0,0.3608]
[1731237492685,0.03838322,79944.0,79939.0,0.3608]
[1731237492983,0.03838322,79943.0,79939.0,0.3608]
[1731237493171,0.3608,79946.0,79939.0,0.3608]
[1731237493683,0.3608,79940.0,79931.0,0.4971]
[1731237493877,0.3608,79940.0,79928.0,0.4971]
[1731237494378,0.3608,79937.0,79928.0,0.4971]
[1731237494678,0.31076185,79937.0,79928.0,0.4971]
[1731237498389,0.34417949,79937.0,79927.0,2.00156]
[1731237498687,0.34417949,79937.0,79927.0,2.0]
[1731237499088,0.03341764,79937.0,79936.0,0.3608]
[1731237499285,0.3608,79942.0,79928.0,0.4971]
[1731237499880,0.3608,79933.0,79928.0,0.4971]
[1731237500290,0.3608,79933.0,79927.0,2.00156]
[1731237500291,0.44433738,79932.0,79927.0,2.00156]
[1731237500484,0.06901738,79931.0,79927.0,2.0]
[1731237500684,0.06901738,79930.0,79927.0,2.0]
[1731237500987,0.13693185,79930.0,79927.0,1.91394526]
[1731237501191,0.37532,79929.0,79927.0,1.91394526]
[1731237501384,0.37532,79930.0,79928.0,0.05004504]
[1731237501590,0.44434282,79929.0,79928.0,0.05004504]
[1731237501891,0.06902282,79929.0,79928.0,0.05004504]
[1731237502189,0.44434282,79929.0,79928.0,0.05004504]
[1731237502686,0.03063009,79929.0,79928.0,0.05004504]
[1731237502890,0.03063009,79929.0,79928.0,0.54714504]
[1731237504487,0.10213103,79933.0,79928.0,0.54714504]
[1731237504793,0.06901814,79932.0,79928.0,0.54714504]
[1731237504986,0.06901814,79931.0,79928.0,0.54714504]
[1731237505183,0.06901814,79930.0,79928.0,0.54714504]
[1731237505385,0.03063009,79929.0,79928.0,0.54714504]
[1731237505989,0.0690193,79929.0,79928.0,0.54714504]
[1731237507894,0.03063009,79929.0,79928.0,0.54714504]
[1731237508382,0.03330433,79934.0,79928.0,0.54714504]
[1731237508583,0.02502708,79937.0,79928.0,0.54714504]
[1731237508991,0.3608,79934.0,79928.0,0.54714504]
[1731237511190,0.02502708,79937.0,79928.0,0.54714504]
[1731237511894,0.02502708,79937.0,79928.0,0.4610961]
[1731237513194,0.02502708,79937.0,79929.0,0.4610961]
[1731237514198,0.3608,79934.0,79929.0,0.4610961]